[Event "Irish Championship 2026"]
[Site "Talbot Hotel Stillorgan, Co.Dublin, IE"]
[Date "2026.08.03"]
[Round "3"]
[White "Brozynski, Patryk"]
[Black "Nichenametla V, Advaith"]
[Result "1-0"]
[Board "70"]
[TimeControl "40/5400+30:1800+30"]
[WhiteFideId "2512700"]
[BlackFideId "2516896"]
[WhiteElo "2224"]
[BlackElo "1943"]
[WhiteTitle "CM"]
[WhiteClock "0:06:02"]
[BlackClock "0:08:02"]
[Variant "Standard"]
[EndDate "2026.08.03"]
[EndTime "19:12:06"]

1. e4 {[%clk 1:29:32]}  e6 {[%clk 1:30:35]} 2. d4 {[%clk 1:28:01]}  d5 {[%clk 1:22:24]} 3. Nd2 {[%clk 1:27:54]}  c5 {[%clk 1:22:46]}
4. Ngf3 {[%clk 1:27:41]}  cxd4 {[%clk 1:22:59]} 5. Nxd4 {[%clk 1:27:36]}  Nf6 {[%clk 1:22:14]} 6. exd5 {[%clk 1:27:14]}  Qxd5 {[%clk 1:21:12]}
7. Nb5 {[%clk 1:26:58]}  Qd8 {[%clk 1:19:34]} 8. Nc4 {[%clk 1:27:00]}  Nd5 {[%clk 1:18:54]} 9. Ne3 {[%clk 1:25:22]}  Bb4+ {[%clk 1:08:06]}
10. c3 {[%clk 1:21:42]}  Ba5 {[%clk 1:08:35]} 11. Nxd5 {[%clk 0:55:36]}  exd5 {[%clk 1:07:39]} 12. Be3 {[%clk 0:55:43]}  Bb6 {[%clk 1:01:49]}
13. Nd4 {[%clk 0:51:21]}  Nc6 {[%clk 0:55:45]} 14. g3 {[%clk 0:37:41]}  Nxd4 {[%clk 0:53:38]} 15. Bxd4 {[%clk 0:36:33]}  O-O {[%clk 0:54:00]}
16. Bg2 {[%clk 0:34:43]}  Re8+ {[%clk 0:53:17]} 17. Kf1 {[%clk 0:34:46]}  Bf5 {[%clk 0:50:31]} 18. Kg1 {[%clk 0:30:32]}  Rc8 {[%clk 0:37:18]}
19. h4 {[%clk 0:24:09]}  Rc6 {[%clk 0:34:48]} 20. Bf3 {[%clk 0:22:19]}  Be4 {[%clk 0:28:54]} 21. Kg2 {[%clk 0:18:31]}  Rce6 {[%clk 0:21:30]}
22. Qd2 {[%clk 0:10:37]}  Bxf3+ {[%clk 0:18:02]} 23. Kxf3 {[%clk 0:10:29]}  Re2 {[%clk 0:18:17]} 24. Qxe2 {[%clk 0:08:32]}  Rxe2 {[%clk 0:17:54]}
25. Kxe2 {[%clk 0:09:00]}  Bxd4 {[%clk 0:18:07]} 26. cxd4 {[%clk 0:09:25]}  Qb6 {[%clk 0:16:29]} 27. Rad1 {[%clk 0:08:27]}  Qxb2+ {[%clk 0:17:16]}
28. Rd2 {[%clk 0:08:48]}  Qa3 {[%clk 0:17:30]} 29. Rb1 {[%clk 0:08:01]}  g6 {[%clk 0:17:42]} 30. Rb3 {[%clk 0:08:05]}  Qa6+ {[%clk 0:17:32]}
31. Kf3 {[%clk 0:06:49]}  Qf1 {[%clk 0:17:39]} 32. Rxb7 {[%clk 0:05:14]}  Qh1+ {[%clk 0:17:47]} 33. Ke2 {[%clk 0:05:12]}  Qe4+ {[%clk 0:18:02]}
34. Kf1 {[%clk 0:04:56]}  Qh1+ {[%clk 0:18:25]} 35. Ke2 {[%clk 0:05:24]}  Qe4+ {[%clk 0:18:51]} 36. Kd1 {[%clk 0:04:57]}  Qf3+ {[%clk 0:18:55]}
37. Kc2 {[%clk 0:04:36]}  Qf5+ {[%clk 0:11:16]} 38. Kb2 {[%clk 0:04:27]}  Qc8 {[%clk 0:10:54]} 39. Rb3 {[%clk 0:04:36]}  Qc4 {[%clk 0:10:01]}
40. Rc3 {[%clk 0:02:43]}  Qb5+ {[%clk 0:10:11]} 41. Kc2 {[%clk 0:02:31]}  Qa4+ {[%clk 0:08:53]} 42. Kc1 {[%clk 0:02:12]}  Qb5 {[%clk 0:05:54]}
43. Rdd3 {[%clk 0:02:06]}  Qe8 {[%clk 0:04:25]} 44. Kd2 {[%clk 0:22:39]}  Qb5 {[%clk 0:34:21]} 45. a3 {[%clk 0:17:37]}  Kg7 {[%clk 0:30:29]}
46. Ke2 {[%clk 0:16:58]}  Qb1 {[%clk 0:29:20]} 47. Rd2 {[%clk 0:16:13]}  Qb5+ {[%clk 0:28:56]} 48. Rcd3 {[%clk 0:15:53]}  Qe8+ {[%clk 0:26:52]}
49. Kf1 {[%clk 0:15:58]}  Qc8 {[%clk 0:26:41]} 50. Kg2 {[%clk 0:16:17]}  Qe8 {[%clk 0:26:16]} 51. Re3 {[%clk 0:16:41]}  Qa4 {[%clk 0:26:14]}
52. Rf3 {[%clk 0:16:55]}  h5 {[%clk 0:23:32]} 53. Rb2 {[%clk 0:14:51]}  Qc6 {[%clk 0:18:40]} 54. Rbb3 {[%clk 0:14:23]}  Kg8 {[%clk 0:16:52]}
55. Rbc3 {[%clk 0:14:09]}  Qd7 {[%clk 0:15:43]} 56. Rf6 {[%clk 0:11:37]}  Qa4 {[%clk 0:12:50]} 57. Rc7 {[%clk 0:09:16]}  Qxd4 {[%clk 0:11:23]}
58. Rfxf7 {[%clk 0:08:31]}  Qe4+ {[%clk 0:10:18]} 59. Kh2 {[%clk 0:08:47]}  Qe1 {[%clk 0:10:21]} 60. Rce7 {[%clk 0:07:28]}  Qf1 {[%clk 0:09:59]}
61. Rg7+ {[%clk 0:06:43]}  Kh8 {[%clk 0:10:07]} 62. Rgf7 {[%clk 0:05:59]}  Kg8 {[%clk 0:10:33]} 63. Rf3 {[%clk 0:05:02]}  d4 {[%clk 0:10:33]}
64. Re8+ {[%clk 0:02:57]}  Kg7 {[%clk 0:10:55]} 65. Re7+ {[%clk 0:03:09]}  Kg8 {[%clk 0:11:00]} 66. Re4 {[%clk 0:02:52]}  g5 {[%clk 0:04:30]}
67. Rxd4 {[%clk 0:02:43]}  g4 {[%clk 0:04:54]} 68. Rf5 {[%clk 0:02:49]}  a5 {[%clk 0:04:22]} 69. Rg5+ {[%clk 0:03:12]}  Kh7 {[%clk 0:04:08]}
70. Rxh5+ {[%clk 0:03:21]}  Kg6 {[%clk 0:04:30]} 71. Rg5+ {[%clk 0:03:41]}  Kh6 {[%clk 0:04:49]} 72. Rf4 {[%clk 0:03:40]}  a4 {[%clk 0:05:11]}
73. Rgxg4 {[%clk 0:03:40]}  Kh5 {[%clk 0:05:28]} 74. Rg5+ {[%clk 0:03:50]}  Kh6 {[%clk 0:05:53]} 75. Ra5 {[%clk 0:03:53]}  Kg6 {[%clk 0:06:14]}
76. Raxa4 {[%clk 0:04:06]}  Kh6 {[%clk 0:06:40]} 77. Rab4 {[%clk 0:04:29]}  Kg6 {[%clk 0:06:57]} 78. Rb6+ {[%clk 0:04:53]}  Kg7 {[%clk 0:07:26]}
79. a4 {[%clk 0:05:15]}  Qe1 {[%clk 0:07:11]} 80. Rb5 {[%clk 0:05:33]}  Kg6 {[%clk 0:07:33]} 81. a5 {[%clk 0:05:46]}  Qe2 {[%clk 0:07:41]}
82. Rb6+ {[%clk 0:06:08]}  Kh5 {[%clk 0:08:02]} 83. Rf5+ {[%clk 0:06:02]} 1-0

[Event "Irish Championship 2026"]
[Site "Talbot Hotel Stillorgan, Co.Dublin, IE"]
[Date "2026.08.03"]
[Round "3"]
[White "Melaugh, Gavin"]
[Black "Heron, Lorcan"]
[Result "1-0"]
[Board "71"]
[TimeControl "40/5400+30:1800+30"]
[WhiteFideId "2509571"]
[BlackFideId "2529343"]
[WhiteElo "2093"]
[BlackElo "1926"]
[WhiteClock "0:15:01"]
[BlackClock "0:13:38"]
[Variant "Standard"]
[EndDate "2026.08.03"]
[EndTime "17:12:44"]

1. d4 {[%clk 1:16:38]}  Nf6 {[%clk 1:30:43]} 2. c4 {[%clk 1:17:01]}  e6 {[%clk 1:30:45]} 3. Nc3 {[%clk 1:17:27]}  c5 {[%clk 1:31:13]}
4. d5 {[%clk 1:16:18]}  exd5 {[%clk 1:31:36]} 5. cxd5 {[%clk 1:16:09]}  d6 {[%clk 1:32:02]} 6. e4 {[%clk 1:16:10]}  g6 {[%clk 1:32:27]}
7. Nf3 {[%clk 1:15:06]}  Bg7 {[%clk 1:32:51]} 8. Bb5+ {[%clk 1:11:03]}  Bd7 {[%clk 1:32:02]} 9. a4 {[%clk 1:07:43]}  O-O {[%clk 1:32:13]}
10. O-O {[%clk 1:08:03]}  Bg4 {[%clk 1:32:21]} 11. h3 {[%clk 1:07:42]}  Bxf3 {[%clk 1:32:41]} 12. Qxf3 {[%clk 1:08:10]}  a6 {[%clk 1:32:35]}
13. Bc4 {[%clk 1:06:59]}  Nbd7 {[%clk 1:31:27]} 14. Bf4 {[%clk 1:06:29]}  Qe7 {[%clk 1:28:38]} 15. Rfe1 {[%clk 1:05:52]}  Ne5 {[%clk 1:24:16]}
16. Qe2 {[%clk 1:05:39]}  Nh5 {[%clk 1:22:28]} 17. Bd2 {[%clk 1:00:27]}  Qh4 {[%clk 1:19:51]} 18. Ba2 {[%clk 0:50:04]}  f5 {[%clk 1:17:30]}
19. exf5 {[%clk 0:49:44]}  Rxf5 {[%clk 1:15:41]} 20. Bb1 {[%clk 0:48:29]}  Rf7 {[%clk 0:30:07]} 21. Ne4 {[%clk 0:46:52]}  Nf4 {[%clk 0:26:02]}
22. Bxf4 {[%clk 0:44:45]}  Qxf4 {[%clk 0:25:10]} 23. Nxd6 {[%clk 0:44:10]}  Nf3+ {[%clk 0:22:42]} 24. Qxf3 {[%clk 0:44:34]}  Qxd6 {[%clk 0:23:05]}
25. Re6 {[%clk 0:35:00]}  Qf8 {[%clk 0:23:07]} 26. Qe4 {[%clk 0:26:31]}  Rxf2 {[%clk 0:18:55]} 27. Bd3 {[%clk 0:26:22]}  Rf4 {[%clk 0:18:46]}
28. Qe2 {[%clk 0:24:32]}  Bd4+ {[%clk 0:19:04]} 29. Kh1 {[%clk 0:24:15]}  Rf2 {[%clk 0:19:12]} 30. Rf1 {[%clk 0:21:43]}  Rxf1+ {[%clk 0:18:52]}
31. Qxf1 {[%clk 0:22:08]}  Qxf1+ {[%clk 0:19:17]} 32. Bxf1 {[%clk 0:22:35]}  Rf8 {[%clk 0:18:41]} 33. Bc4 {[%clk 0:21:48]}  Kf7 {[%clk 0:15:40]}
34. Rb6 {[%clk 0:18:34]}  Re8 {[%clk 0:13:50]} 35. Rxb7+ {[%clk 0:17:39]}  Kf6 {[%clk 0:14:09]} 36. g3 {[%clk 0:15:09]}  Re1+ {[%clk 0:13:19]}
37. Kg2 {[%clk 0:15:24]}  Rb1 {[%clk 0:13:17]} 38. b3 {[%clk 0:14:54]}  Kf5 {[%clk 0:13:38]} 39. Bd3+ {[%clk 0:15:01]} 1-0

[Event "Irish Championship 2026"]
[Site "Talbot Hotel Stillorgan, Co.Dublin, IE"]
[Date "2026.08.03"]
[Round "3"]
[White "Burke, Kevin A."]
[Black "Murray, Benjamin"]
[Result "0-1"]
[Board "72"]
[TimeControl "40/5400+30:1800+30"]
[WhiteFideId "2501520"]
[BlackFideId "2512963"]
[WhiteElo "1896"]
[BlackElo "2080"]
[WhiteClock "0:26:11"]
[BlackClock "0:36:02"]
[Variant "Standard"]
[EndDate "2026.08.03"]
[EndTime "16:31:50"]

1. e4 {[%clk 1:30:58]}  e5 {[%clk 1:24:15]} 2. f4 {[%clk 1:31:24]}  exf4 {[%clk 1:24:37]} 3. Bc4 {[%clk 1:31:51]}  Nc6 {[%clk 1:24:45]}
4. d4 {[%clk 1:32:08]}  Nf6 {[%clk 1:24:26]} 5. Nc3 {[%clk 1:32:10]}  Bb4 {[%clk 1:24:50]} 6. Nge2 {[%clk 1:31:12]}  f3 {[%clk 1:25:09]}
7. gxf3 {[%clk 1:29:27]}  d5 {[%clk 1:25:30]} 8. exd5 {[%clk 1:28:50]}  Nxd5 {[%clk 1:25:53]} 9. O-O {[%clk 1:28:17]}  Nxc3 {[%clk 1:26:07]}
10. bxc3 {[%clk 1:26:58]}  Bd6 {[%clk 1:26:18]} 11. Ng3 {[%clk 1:26:36]}  O-O {[%clk 1:26:40]} 12. Kh1 {[%clk 1:19:00]}  Ne7 {[%clk 1:19:25]}
13. Ne4 {[%clk 1:14:41]}  Ng6 {[%clk 1:09:48]} 14. Bg5 {[%clk 1:09:59]}  Be7 {[%clk 1:07:54]} 15. f4 {[%clk 1:04:32]}  b6 {[%clk 1:00:09]}
16. Qh5 {[%clk 0:59:29]}  Bb7 {[%clk 0:55:45]} 17. Rae1 {[%clk 0:57:08]}  b5 {[%clk 0:44:44]} 18. Bb3 {[%clk 0:49:44]}  Bxg5 {[%clk 0:43:14]}
19. fxg5 {[%clk 0:45:45]}  c5 {[%clk 0:42:09]} 20. dxc5 {[%clk 0:40:09]}  Qe7 {[%clk 0:40:21]} 21. Qf3 {[%clk 0:32:28]}  Rae8 {[%clk 0:39:34]}
22. c6 {[%clk 0:32:22]}  Bxc6 {[%clk 0:39:48]} 23. Nf6+ {[%clk 0:25:52]}  Qxf6 {[%clk 0:39:01]} 24. Bxf7+ {[%clk 0:26:11]}  Kh8 {[%clk 0:36:02]} 0-1

[Event "Irish Championship 2026"]
[Site "Talbot Hotel Stillorgan, Co.Dublin, IE"]
[Date "2026.08.03"]
[Round "3"]
[White "Ryan, Joshua"]
[Black "Hayes, Peter J."]
[Result "1/2-1/2"]
[Board "73"]
[TimeControl "40/5400+30:1800+30"]
[WhiteFideId "2516705"]
[BlackFideId "2502569"]
[WhiteElo "1866"]
[BlackElo "2073"]
[WhiteClock "1:08:33"]
[BlackClock "0:21:13"]
[Variant "Standard"]
[EndDate "2026.08.03"]
[EndTime "17:40:13"]

1. e4 {[%clk 1:29:52]}  e6 {[%clk 1:30:46]} 2. d4 {[%clk 1:30:04]}  d5 {[%clk 1:30:59]} 3. exd5 {[%clk 1:30:26]}  exd5 {[%clk 1:31:24]}
4. Nf3 {[%clk 1:30:51]}  Bd6 {[%clk 1:25:01]} 5. c4 {[%clk 1:31:13]}  Qe7+ {[%clk 1:24:59]} 6. Qe2 {[%clk 1:28:49]}  dxc4 {[%clk 1:25:19]}
7. Qxe7+ {[%clk 1:29:03]}  Nxe7 {[%clk 1:24:53]} 8. Bxc4 {[%clk 1:29:20]}  Nbc6 {[%clk 1:23:40]} 9. h3 {[%clk 1:25:30]}  Nb4 {[%clk 1:00:49]}
10. Na3 {[%clk 1:24:09]}  a6 {[%clk 0:54:34]} 11. O-O {[%clk 1:21:30]}  b5 {[%clk 0:53:39]} 12. Bb3 {[%clk 1:20:59]}  O-O {[%clk 0:53:21]}
13. Nc2 {[%clk 1:14:17]}  Be6 {[%clk 0:44:07]} 14. Bd2 {[%clk 1:07:59]}  Bxb3 {[%clk 0:37:39]} 15. Nxb4 {[%clk 1:08:20]}  Bc4 {[%clk 0:36:23]}
16. Rfc1 {[%clk 1:07:42]}  a5 {[%clk 0:35:12]} 17. Nc2 {[%clk 1:07:53]}  Bd5 {[%clk 0:30:34]} 18. Ne5 {[%clk 1:04:57]}  f6 {[%clk 0:27:44]}
19. Nd3 {[%clk 1:04:09]}  Rfd8 {[%clk 0:26:17]} 20. Bf4 {[%clk 1:02:36]}  Bc4 {[%clk 0:21:11]} 21. Bxd6 {[%clk 1:02:36]}  Rxd6 {[%clk 0:21:37]}
22. Nc5 {[%clk 1:02:11]}  Nf5 {[%clk 0:19:32]} 23. Rd1 {[%clk 1:00:21]}  Bd5 {[%clk 0:16:24]} 24. Ne3 {[%clk 0:56:46]}  Nxe3 {[%clk 0:16:16]}
25. fxe3 {[%clk 0:57:09]}  Re8 {[%clk 0:16:41]} 26. Kf2 {[%clk 0:56:38]}  Re7 {[%clk 0:14:09]} 27. b3 {[%clk 0:56:47]}  Kf7 {[%clk 0:10:28]}
28. Re1 {[%clk 0:55:53]}  Be4 {[%clk 0:10:45]} 29. Nxe4 {[%clk 0:54:55]}  Rxe4 {[%clk 0:11:05]} 30. Rac1 {[%clk 0:55:18]}  c6 {[%clk 0:11:14]}
31. Rc3 {[%clk 0:54:49]}  f5 {[%clk 0:09:10]} 32. Kf3 {[%clk 0:53:33]}  Rde6 {[%clk 0:06:09]} 33. Rec1 {[%clk 0:53:38]}  g5 {[%clk 0:06:05]}
34. Kf2 {[%clk 0:49:57]}  f4 {[%clk 0:05:36]} 35. exf4 {[%clk 0:49:38]}  Rxf4+ {[%clk 0:05:45]} 36. Kg3 {[%clk 0:49:18]}  h5 {[%clk 0:05:05]}
37. Rxc6 {[%clk 0:49:06]}  h4+ {[%clk 0:05:25]} 38. Kh2 {[%clk 0:49:31]}  g4 {[%clk 0:03:52]} 39. hxg4 {[%clk 0:46:12]}  Rxg4 {[%clk 0:04:08]}
40. Rxe6 {[%clk 0:45:43]}  Kxe6 {[%clk 0:04:33]} 41. Rc5 {[%clk 0:45:49]}  Rxd4 {[%clk 0:28:07]} 42. Rxb5 {[%clk 1:15:49]}  a4 {[%clk 0:28:03]}
43. Kh3 {[%clk 1:15:01]}  axb3 {[%clk 0:28:12]} 44. axb3 {[%clk 1:15:16]}  Kf6 {[%clk 0:27:50]} 45. b4 {[%clk 1:14:08]}  Kg6 {[%clk 0:21:52]}
46. Rb8 {[%clk 1:13:07]}  Kg5 {[%clk 0:21:21]} 47. b5 {[%clk 1:12:33]}  Rd1 {[%clk 0:14:36]} 48. Kh2 {[%clk 1:10:31]}  Rb1 {[%clk 0:15:00]}
49. b6 {[%clk 1:10:46]}  Kg6 {[%clk 0:15:19]} 50. b7 {[%clk 1:09:54]}  Kg7 {[%clk 0:15:44]} 51. Kh3 {[%clk 1:09:43]}  Rb4 {[%clk 0:16:09]}
52. Kh2 {[%clk 1:07:47]}  Rb1 {[%clk 0:16:31]} 53. Kh3 {[%clk 1:06:04]}  Rb4 {[%clk 0:16:56]} 54. g3 {[%clk 1:06:15]}  hxg3 {[%clk 0:17:14]}
55. Kxg3 {[%clk 1:06:37]}  Kh7 {[%clk 0:17:19]} 56. Kf3 {[%clk 1:06:59]}  Kg7 {[%clk 0:17:45]} 57. Ke3 {[%clk 1:07:21]}  Kh7 {[%clk 0:18:09]}
58. Kd3 {[%clk 1:07:44]}  Kg7 {[%clk 0:18:06]} 59. Kc3 {[%clk 1:07:57]}  Rb1 {[%clk 0:18:31]} 60. Kc2 {[%clk 1:07:39]}  Rb4 {[%clk 0:18:56]}
61. Kd3 {[%clk 1:07:35]}  Kh7 {[%clk 0:18:56]} 62. Kc3 {[%clk 1:07:54]}  Rb1 {[%clk 0:19:16]} 63. Kd4 {[%clk 1:07:27]}  Rd1+ {[%clk 0:19:34]}
64. Kc5 {[%clk 1:07:47]}  Rc1+ {[%clk 0:19:59]} 65. Kb4 {[%clk 1:08:05]}  Rb1+ {[%clk 0:20:23]} 66. Kc3 {[%clk 1:08:10]}  Kg7 {[%clk 0:20:47]}
67. Kc2 {[%clk 1:08:33]}  Rb4 {[%clk 0:21:13]} 1/2-1/2

[Event "Irish Championship 2026"]
[Site "Talbot Hotel Stillorgan, Co.Dublin, IE"]
[Date "2026.08.03"]
[Round "3"]
[White "Fox, Anthony"]
[Black "Freeman, Gordon"]
[Result "1/2-1/2"]
[Board "74"]
[TimeControl "40/5400+30:1800+30"]
[WhiteFideId "2500736"]
[BlackFideId "2501309"]
[WhiteElo "1876"]
[BlackElo "2068"]
[BlackTitle "FM"]
[WhiteClock "0:33:43"]
[BlackClock "0:09:58"]
[Variant "Standard"]
[EndDate "2026.08.03"]
[EndTime "16:46:47"]

1. e4 {[%clk 1:30:57]}  c5 {[%clk 1:26:08]} 2. c4 {[%clk 1:30:55]}  Nc6 {[%clk 1:24:32]} 3. Nc3 {[%clk 1:31:16]}  g6 {[%clk 1:16:32]}
4. g3 {[%clk 1:31:17]}  Bg7 {[%clk 1:16:38]} 5. Bg2 {[%clk 1:31:00]}  e6 {[%clk 1:16:37]} 6. Nge2 {[%clk 1:30:10]}  Nge7 {[%clk 1:16:36]}
7. O-O {[%clk 1:29:38]}  O-O {[%clk 1:13:07]} 8. d3 {[%clk 1:29:48]}  d6 {[%clk 1:10:49]} 9. a3 {[%clk 1:27:48]}  Nd4 {[%clk 1:04:49]}
10. Rb1 {[%clk 1:25:05]}  b6 {[%clk 0:53:20]} 11. b4 {[%clk 1:21:18]}  Bb7 {[%clk 0:52:07]} 12. Be3 {[%clk 1:14:19]}  Qd7 {[%clk 0:50:21]}
13. Qd2 {[%clk 1:09:24]}  Nxe2+ {[%clk 0:39:29]} 14. Nxe2 {[%clk 1:09:35]}  Nc6 {[%clk 0:39:29]} 15. Bh6 {[%clk 1:03:29]}  f5 {[%clk 0:36:44]}
16. Bxg7 {[%clk 1:01:06]}  Qxg7 {[%clk 0:36:40]} 17. f4 {[%clk 0:57:20]}  Rae8 {[%clk 0:32:50]} 18. b5 {[%clk 0:49:02]}  Nd4 {[%clk 0:29:55]}
19. Nc3 {[%clk 0:40:59]}  h5 {[%clk 0:24:46]} 20. h4 {[%clk 0:38:38]}  Re7 {[%clk 0:21:02]} 21. Kh2 {[%clk 0:36:29]}  Rd8 {[%clk 0:19:22]}
22. Rbe1 {[%clk 0:33:40]}  Rdd7 {[%clk 0:13:32]} 23. a4 {[%clk 0:33:33]}  Nb3 {[%clk 0:11:32]} 24. Qc2 {[%clk 0:33:30]}  Nd4 {[%clk 0:11:56]}
25. Qd2 {[%clk 0:33:33]}  Nb3 {[%clk 0:09:44]} 26. Qc2 {[%clk 0:33:43]}  Nd4 {[%clk 0:09:58]} 1/2-1/2

[Event "Irish Championship 2026"]
[Site "Talbot Hotel Stillorgan, Co.Dublin, IE"]
[Date "2026.08.03"]
[Round "3"]
[White "Paibir, Atharva"]
[Black "Moull, Arthur"]
[Result "1-0"]
[Board "75"]
[TimeControl "40/5400+30:1800+30"]
[WhiteFideId "2512882"]
[BlackFideId "2517426"]
[WhiteElo "2067"]
[BlackElo "1876"]
[WhiteClock "0:27:39"]
[BlackClock "0:22:42"]
[Variant "Standard"]
[EndDate "2026.08.03"]
[EndTime "18:05:09"]

1. c4 {[%clk 1:30:53]}  c5 {[%clk 1:29:57]} 2. Nc3 {[%clk 1:31:09]}  Nc6 {[%clk 1:30:09]} 3. Nf3 {[%clk 1:31:30]}  g6 {[%clk 1:29:17]}
4. e3 {[%clk 1:31:39]}  Nf6 {[%clk 1:28:28]} 5. d4 {[%clk 1:30:28]}  cxd4 {[%clk 1:24:35]} 6. exd4 {[%clk 1:30:20]}  d6 {[%clk 1:17:09]}
7. d5 {[%clk 1:27:30]}  Nb8 {[%clk 1:16:22]} 8. Be2 {[%clk 1:27:36]}  Bg7 {[%clk 1:15:06]} 9. O-O {[%clk 1:27:41]}  O-O {[%clk 1:12:35]}
10. Be3 {[%clk 1:25:35]}  Na6 {[%clk 1:00:48]} 11. Nb5 {[%clk 1:14:11]}  Ne4 {[%clk 0:50:29]} 12. Rb1 {[%clk 1:02:58]}  Bf5 {[%clk 0:37:04]}
13. Nfd4 {[%clk 1:01:20]}  Bd7 {[%clk 0:36:56]} 14. Qc2 {[%clk 0:53:55]}  Nf6 {[%clk 0:34:26]} 15. b4 {[%clk 0:45:02]}  Nc7 {[%clk 0:33:07]}
16. a4 {[%clk 0:37:39]}  Ng4 {[%clk 0:26:15]} 17. Bd2 {[%clk 0:23:18]}  Rc8 {[%clk 0:22:43]} 18. h3 {[%clk 0:16:25]}  Nxb5 {[%clk 0:20:46]}
19. Nxb5 {[%clk 0:13:44]}  Bf5 {[%clk 0:19:28]} 20. Qb3 {[%clk 0:13:47]}  Nf6 {[%clk 0:16:03]} 21. Rbc1 {[%clk 0:13:43]}  Ne4 {[%clk 0:15:37]}
22. Be3 {[%clk 0:13:52]}  a6 {[%clk 0:15:21]} 23. Na3 {[%clk 0:08:46]}  h5 {[%clk 0:13:39]} 24. a5 {[%clk 0:09:01]}  Qd7 {[%clk 0:13:07]}
25. Bf3 {[%clk 0:07:59]}  h4 {[%clk 0:11:18]} 26. Rfe1 {[%clk 0:05:42]}  Rfe8 {[%clk 0:07:15]} 27. Bxe4 {[%clk 0:04:22]}  Bxe4 {[%clk 0:07:44]}
28. Bg5 {[%clk 0:04:43]}  Qf5 {[%clk 0:06:46]} 29. Bxh4 {[%clk 0:04:47]}  Bh6 {[%clk 0:06:58]} 30. Rcd1 {[%clk 0:04:13]}  g5 {[%clk 0:04:29]}
31. Qe3 {[%clk 0:04:04]}  gxh4 {[%clk 0:02:16]} 32. Qxe4 {[%clk 0:03:42]}  Qh5 {[%clk 0:00:52]} 33. Rd4 {[%clk 0:02:37]}  Bg5 {[%clk 0:01:07]}
34. Qf5 {[%clk 0:02:04]}  Qg6 {[%clk 0:00:33]} 35. Qf3 {[%clk 0:01:51]}  Kf8 {[%clk 0:00:38]} 36. Rg4 {[%clk 0:02:03]}  Qf6 {[%clk 0:01:04]}
37. Qd3 {[%clk 0:01:48]}  Rc7 {[%clk 0:00:40]} 38. f4 {[%clk 0:01:43]}  Bh6 {[%clk 0:00:53]} 39. Qh7 {[%clk 0:01:01]}  Qd4+ {[%clk 0:01:22]}
40. Kh1 {[%clk 0:01:16]}  Bg7 {[%clk 0:01:49]} 41. Qxh4 {[%clk 0:01:07]}  Qc3 {[%clk 0:30:14]} 42. Qg3 {[%clk 0:30:13]}  e6 {[%clk 0:28:55]}
43. Re3 {[%clk 0:28:27]}  Qa1+ {[%clk 0:27:43]} 44. Kh2 {[%clk 0:27:44]}  Bd4 {[%clk 0:27:14]} 45. Nc2 {[%clk 0:23:07]}  Qd1 {[%clk 0:27:33]}
46. Nxd4 {[%clk 0:23:24]}  Qxd4 {[%clk 0:28:02]} 47. Rg8+ {[%clk 0:23:21]}  Ke7 {[%clk 0:28:31]} 48. Qg5+ {[%clk 0:23:31]}  Kd7 {[%clk 0:28:16]}
49. dxe6+ {[%clk 0:23:34]}  fxe6 {[%clk 0:27:37]} 50. Rxe8 {[%clk 0:21:40]}  Qxe3 {[%clk 0:26:43]} 51. Rd8+ {[%clk 0:21:56]}  Kc6 {[%clk 0:27:11]}
52. b5+ {[%clk 0:22:20]}  axb5 {[%clk 0:27:39]} 53. cxb5# {[%clk 0:22:42]} 1-0

[Event "Irish Championship 2026"]
[Site "Talbot Hotel Stillorgan, Co.Dublin, IE"]
[Date "2026.08.03"]
[Round "3"]
[White "Mulukutla, Ayaansh"]
[Black "Conor O'reilly"]
[Result "1/2-1/2"]
[Board "77"]
[TimeControl "40/5400+30:1800+30"]
[WhiteFideId "33391998"]
[WhiteElo "1839"]
[BlackElo "2019"]
[WhiteClock "0:17:57"]
[BlackClock "0:13:51"]
[Variant "Standard"]
[EndDate "2026.08.03"]
[EndTime "18:26:44"]

1. Nf3 {[%clk 1:30:22]}  Nf6 {[%clk 1:30:56]} 2. g3 {[%clk 1:30:45]}  e6 {[%clk 1:29:23]} 3. d4 {[%clk 1:30:19]}  b5 {[%clk 1:30:09]}
4. Bg2 {[%clk 1:30:04]}  Bb7 {[%clk 1:30:34]} 5. O-O {[%clk 1:30:15]}  c5 {[%clk 1:29:58]} 6. c3 {[%clk 1:27:54]}  Qb6 {[%clk 1:27:12]}
7. Be3 {[%clk 1:24:29]}  Nc6 {[%clk 1:19:29]} 8. dxc5 {[%clk 1:23:15]}  Bxc5 {[%clk 1:19:54]} 9. Bxc5 {[%clk 1:23:37]}  Qxc5 {[%clk 1:20:20]}
10. Nbd2 {[%clk 1:22:48]}  O-O {[%clk 1:15:34]} 11. Nb3 {[%clk 1:22:39]}  Qe7 {[%clk 1:10:05]} 12. Nbd4 {[%clk 1:13:20]}  Nxd4 {[%clk 1:08:35]}
13. Qxd4 {[%clk 1:13:13]}  Rfc8 {[%clk 1:07:07]} 14. Rfd1 {[%clk 1:04:45]}  Bxf3 {[%clk 1:04:34]} 15. Bxf3 {[%clk 1:03:50]}  d5 {[%clk 1:04:38]}
16. a4 {[%clk 1:01:38]}  Rc4 {[%clk 1:01:06]} 17. Qd3 {[%clk 1:01:32]}  Qc5 {[%clk 0:51:32]} 18. e4 {[%clk 0:47:30]}  dxe4 {[%clk 0:43:19]}
19. Qd8+ {[%clk 0:45:09]}  Rxd8 {[%clk 0:37:59]} 20. Rxd8+ {[%clk 0:43:37]}  Qf8 {[%clk 0:38:24]} 21. Rxf8+ {[%clk 0:44:01]}  Kxf8 {[%clk 0:38:49]}
22. Bd1 {[%clk 0:42:25]}  bxa4 {[%clk 0:39:06]} 23. Bxa4 {[%clk 0:42:45]}  Ke7 {[%clk 0:36:07]} 24. Kf1 {[%clk 0:40:45]}  h5 {[%clk 0:35:10]}
25. h4 {[%clk 0:38:31]}  Rc7 {[%clk 0:31:59]} 26. Bc2 {[%clk 0:36:53]}  Rb7 {[%clk 0:30:01]} 27. b3 {[%clk 0:33:42]}  Rc7 {[%clk 0:25:52]}
28. c4 {[%clk 0:33:37]}  Kd6 {[%clk 0:25:43]} 29. Ra5 {[%clk 0:33:10]}  g6 {[%clk 0:22:36]} 30. Ke2 {[%clk 0:31:46]}  Rb7 {[%clk 0:20:11]}
31. Kf1 {[%clk 0:29:57]}  e3 {[%clk 0:11:59]} 32. f3 {[%clk 0:26:21]}  Nd7 {[%clk 0:10:49]} 33. Ke2 {[%clk 0:25:46]}  Nc5 {[%clk 0:10:17]}
34. Ra3 {[%clk 0:25:44]}  e5 {[%clk 0:05:51]} 35. Kxe3 {[%clk 0:23:21]}  Ne6 {[%clk 0:03:23]} 36. Be4 {[%clk 0:13:14]}  Rb6 {[%clk 0:03:10]}
37. Bd5 {[%clk 0:11:54]}  Nd4 {[%clk 0:01:51]} 38. Rxa7 {[%clk 0:07:56]}  Rxb3+ {[%clk 0:02:14]} 39. Kf2 {[%clk 0:07:50]}  Rb2+ {[%clk 0:02:06]}
40. Kf1 {[%clk 0:04:11]}  Nf5 {[%clk 0:00:37]} 41. Rxf7 {[%clk 0:01:30]}  Ne3+ {[%clk 0:23:17]} 42. Ke1 {[%clk 0:29:03]}  Nxd5 {[%clk 0:23:06]}
43. cxd5 {[%clk 0:27:57]}  Kxd5 {[%clk 0:23:33]} 44. Rd7+ {[%clk 0:24:40]}  Kc5 {[%clk 0:19:05]} 45. Kf1 {[%clk 0:23:38]}  Rb3 {[%clk 0:18:11]}
46. Ke2 {[%clk 0:20:25]}  e4 {[%clk 0:14:29]} 47. Rf7 {[%clk 0:18:59]}  exf3+ {[%clk 0:12:32]} 48. Rxf3 {[%clk 0:19:19]}  Rb4 {[%clk 0:12:43]}
49. Rf6 {[%clk 0:17:14]}  Rg4 {[%clk 0:13:07]} 50. Kf3 {[%clk 0:16:57]}  Kd5 {[%clk 0:11:50]} 51. Rf4 {[%clk 0:16:42]}  Rxf4+ {[%clk 0:11:54]}
52. Kxf4 {[%clk 0:16:41]}  Ke6 {[%clk 0:12:16]} 53. Kg5 {[%clk 0:16:53]}  Kf7 {[%clk 0:12:42]} 54. g4 {[%clk 0:17:17]}  hxg4 {[%clk 0:13:07]}
55. Kxg4 {[%clk 0:17:39]}  Kf6 {[%clk 0:13:33]} 56. h5 {[%clk 0:18:03]}  gxh5+ {[%clk 0:14:00]} 57. Kxh5 {[%clk 0:17:57]}  Ke5 {[%clk 0:13:51]} 1/2-1/2